fUST/lending_fUST_20260327
["ID","MTS","AMOUNT","RATE_DAILY","PERIOD"]
[418916824,1774541285001,-200.0,9.21e-05,120]
[418916825,1774541286619,-200.0,9.21e-05,120]
[418916826,1774541287459,-200.0,9.21e-05,120]
[418916827,1774541288187,-200.0,9.21e-05,120]
[418916828,1774541288929,-200.0,9.21e-05,120]
[418916829,1774541289630,-200.0,9.21e-05,120]
[418916830,1774541290252,-200.0,9.21e-05,120]
[418916831,1774541290998,-200.0,9.21e-05,120]
[418916832,1774541291808,-200.0,9.21e-05,120]
[418916833,1774541292527,-200.0,9.21e-05,120]
[418916835,1774541309183,-200.0,9.21e-05,120]
[418916836,1774541310129,-200.0,9.21e-05,120]
[418916837,1774541311203,-200.0,9.21e-05,120]
[418916838,1774541311974,-200.0,9.21e-05,120]
[418916839,1774541312916,-200.0,9.21e-05,120]
[418916840,1774541313665,-200.0,9.21e-05,120]
[418916841,1774541314292,-200.0,9.21e-05,120]
[418916842,1774541314854,-200.0,9.21e-05,120]
[418916843,1774541315563,-200.0,9.21e-05,120]
[418916844,1774541316017,-200.0,9.21e-05,120]
[418916845,1774541324510,-200.0,9.21e-05,120]
[418916846,1774541325096,-200.0,9.21e-05,120]
[418916847,1774541325796,-200.0,9.21e-05,120]
[418916848,1774541326991,-200.0,9.21e-05,120]
[418916849,1774541327818,-200.0,9.21e-05,120]
[418916850,1774541328406,-200.0,9.21e-05,120]
[418916851,1774541329076,-200.0,9.21e-05,120]
[418916852,1774541329774,-200.0,9.21e-05,120]
[418916853,1774541330463,-200.0,9.21e-05,120]
[418916854,1774541331353,-200.0,9.21e-05,120]
[418916855,1774541332952,-200.0,9.21e-05,120]
[418916856,1774541333642,-200.0,9.21e-05,120]
[418916857,1774541334399,-200.0,9.21e-05,120]
[418916858,1774541335010,-200.0,9.21e-05,120]
[418916859,1774541335707,-200.0,9.21e-05,120]
[418916870,1774541432183,-291.85012365,7.476e-05,17]
[418916871,1774541432195,-8.14987635,7.476e-05,17]
[418916872,1774541432204,-3105.98501785,7.6e-05,2]
[418916923,1774541441106,-2433.1418704,7.6e-05,2]
[418916924,1774541441118,-1489.79658364,7.6e-05,2]
[418916925,1774541441128,-527.0,7.6e-05,2]
[418916926,1774541441137,-300.0,7.751e-05,2]
[418916927,1774541441148,-300.0,7.751e-05,2]
[418916928,1774541441158,-300.0,7.751e-05,2]
[418916929,1774541441167,-300.0,7.751e-05,2]
[418916930,1774541441178,-300.0,7.751e-05,2]
[418916931,1774541441188,-300.0,7.751e-05,2]
[418916932,1774541441198,-262.52624647,7.751e-05,2]
[418916933,1774541441211,-37.47375353,7.751e-05,2]
[418916934,1774541441220,-300.0,7.751e-05,2]
[418916935,1774541441229,-300.0,7.751e-05,2]
[418916936,1774541441239,-300.0,7.751e-05,2]
[418916937,1774541441248,-300.0,7.751e-05,2]
[418916938,1774541441257,-300.0,7.751e-05,2]
[418916939,1774541441266,-300.0,7.751e-05,2]
[418916940,1774541441276,-300.0,7.751e-05,2]
[418916941,1774541441285,-300.0,7.751e-05,2]
[418916942,1774541441295,-600.0,7.905e-05,2]
[418916943,1774541441304,-573.87490655,8.03e-05,2]
[418916944,1774541441314,-2715.74802262,8.431e-05,2]
[418916945,1774541441323,-1020.22205609,8.452e-05,2]
[418916946,1774541441332,-720.0,8.696e-05,2]
[418916947,1774541441343,-1554.30411094,8.826e-05,2]
[418916975,1774541443757,-38.19875474,8.826e-05,2]
[418916976,1774541443767,-13087.56226263,9e-05,2]
[418916977,1774541443777,-300.0,9.209e-05,2]
[418916978,1774541443787,-500.0,9.209e-05,2]
[418916979,1774541443797,-500.0,9.209e-05,2]
[418916980,1774541443807,-545.34205269,9.209e-05,2]
[418916981,1774541443817,-500.0,9.209e-05,2]
[418916983,1774541443827,-500.0,9.209e-05,2]
[418916984,1774541443837,-500.0,9.209e-05,2]
[418916985,1774541443846,-500.0,9.209e-05,2]
[418916986,1774541443855,-500.0,9.209e-05,2]
[418916987,1774541443864,-500.0,9.209e-05,2]
[418916988,1774541443874,-500.0,9.209e-05,2]
[418916989,1774541443883,-500.0,9.209e-05,2]
[418916990,1774541443893,-211.10909794,9.209e-05,2]
[418916991,1774541443902,-500.0,9.209e-05,2]
[418916992,1774541443912,-500.0,9.209e-05,2]
[418916993,1774541443921,-500.0,9.209e-05,2]
[418916994,1774541443930,-500.0,9.209e-05,2]
[418916995,1774541443940,-500.0,9.209e-05,2]
[418916996,1774541443950,-500.0,9.209e-05,2]
[418916997,1774541443959,-3000.0,9.21e-05,120]
[418916998,1774541443969,-511.578102,9.296e-05,2]
[418916999,1774541443979,-158.748,9.3e-05,2]
[418917000,1774541443988,-152.53264516,9.3e-05,2]
[418917001,1774541443997,-156.73246495,9.3e-05,2]
[418917002,1774541444007,-500.0,9.389e-05,2]
[418917003,1774541444016,-402.65416278,9.389e-05,2]
[418917004,1774541444026,-187886.33001761,9.39e-05,2]
[418917005,1774541444236,-9117.5359101,9.39e-05,2]
[418917027,1774541446401,-290.34242357,9.39e-05,2]
[418917028,1774541446759,-17771.66466141,9.39e-05,2]
[418917113,1774542632440,-300.0,7.247e-05,15]
[418917115,1774542632450,-300.0,7.247e-05,12]
[418917117,1774542632460,-1609.9046858,8.259e-05,2]
[418917119,1774542632469,-536.0,8.259e-05,2]
[418917121,1774542632478,-405.73896043,8.271e-05,2]
[418917123,1774542632487,-157.08620896,8.745e-05,2]
[418917125,1774542632496,-282.75517613,8.745e-05,2]
[418917127,1774542632505,-1200.0,8.989e-05,2]
[418917129,1774542632515,-5444.76605609,8.99e-05,2]
[418917131,1774542632524,-300.0,9.072e-05,2]
[418917133,1774542632533,-500.0,9.073e-05,2]
[418917135,1774542632543,-502.936752,9.073e-05,2]
[418917136,1774542632552,-321.73253791,9.073e-05,2]
[418917138,1774542632562,-500.0,9.073e-05,2]
[418917140,1774542632573,-501.69342998,9.073e-05,2]
[418917142,1774542632583,-500.0,9.073e-05,2]
[418917144,1774542632593,-500.0,9.073e-05,2]
[418917146,1774542632603,-501.47490749,9.073e-05,2]
[418917148,1774542632612,-500.0,9.086e-05,2]
[418917150,1774542632622,-302.9699105,9.086e-05,2]
[418917152,1774542632631,-500.0,9.086e-05,2]
[418917154,1774542632640,-500.0,9.086e-05,2]
[418917156,1774542632650,-500.0,9.086e-05,2]
[418917158,1774542632659,-500.0,9.086e-05,2]
[418917160,1774542632669,-500.0,9.086e-05,2]
[418917162,1774542632678,-500.0,9.086e-05,2]
[418917164,1774542632687,-500.0,9.086e-05,2]
[418917166,1774542632696,-250.0,9.086e-05,2]
[418917169,1774542632710,-306.11090979,9.086e-05,2]
[418917170,1774542632719,-500.0,9.086e-05,2]
[418917172,1774542632729,-500.0,9.086e-05,2]
[418917174,1774542632944,-500.0,9.086e-05,2]
[418917175,1774542632955,-500.0,9.086e-05,2]
[418917176,1774542632965,-500.0,9.086e-05,2]
[418917177,1774542632974,-500.0,9.086e-05,2]
[418917178,1774542632984,-500.0,9.086e-05,2]
[418917179,1774542632993,-500.0,9.086e-05,2]
[418917180,1774542633004,-500.0,9.086e-05,2]
[418917181,1774542633013,-500.0,9.086e-05,2]
[418917182,1774542633022,-500.0,9.086e-05,2]
[418917183,1774542633032,-500.0,9.086e-05,2]
[418917188,1774542633088,-500.0,9.086e-05,2]
[418917190,1774542633109,-500.0,9.086e-05,2]
[418917192,1774542633119,-500.0,9.086e-05,2]
[418917194,1774542633129,-500.0,9.086e-05,2]
[418917196,1774542633138,-500.0,9.086e-05,2]
[418917197,1774542633147,-500.0,9.086e-05,2]
[418917199,1774542633157,-500.0,9.086e-05,2]
[418917201,1774542633167,-500.0,9.086e-05,2]
[418917203,1774542633176,-500.0,9.086e-05,2]
[418917205,1774542633186,-500.0,9.086e-05,2]
[418917207,1774542633195,-500.0,9.086e-05,2]
[418917209,1774542633205,-500.0,9.086e-05,2]
[418917210,1774542633214,-500.0,9.086e-05,2]
[418917211,1774542633224,-500.0,9.086e-05,2]
[418917212,1774542633234,-500.0,9.086e-05,2]
[418917213,1774542633244,-500.0,9.086e-05,2]
[418917214,1774542633253,-500.0,9.086e-05,2]
[418917215,1774542633263,-500.0,9.086e-05,2]
[418917216,1774542633272,-500.0,9.086e-05,2]
[418917217,1774542633283,-500.0,9.086e-05,2]
[418917218,1774542633293,-500.0,9.086e-05,2]
[418917219,1774542633302,-500.0,9.086e-05,2]
[418917220,1774542633312,-188.0,9.089e-05,2]
[418917221,1774542633322,-500.0,9.089e-05,2]
[418917222,1774542633332,-500.0,9.089e-05,2]
[418917223,1774542633342,-252.17939286,9.089e-05,2]
[418917224,1774542633352,-500.0,9.089e-05,2]
[418917225,1774542633361,-33286.65107198,9.09e-05,2]
[418917226,1774542633381,-450.0,9.086e-05,2]
[418917227,1774542633389,-500.0,9.086e-05,2]
[418917228,1774542633399,-3985.246198,9.09e-05,2]
[418917229,1774542633410,-665.05,9.09e-05,2]
[418917265,1774542638891,-502.67586867,8.745e-05,2]
[418917266,1774542638902,-784.64561375,8.745e-05,2]
[418917267,1774542638911,-500.0,9.086e-05,2]
[418917268,1774542638921,-500.0,9.086e-05,2]
[418917269,1774542638930,-500.0,9.086e-05,2]
[418917270,1774542638939,-500.0,9.086e-05,2]
[418917271,1774542638948,-500.0,9.086e-05,2]
[418917272,1774542638958,-500.0,9.086e-05,2]
[418917273,1774542638967,-500.0,9.086e-05,2]
[418917274,1774542638976,-500.0,9.086e-05,2]
[418917275,1774542638985,-500.0,9.086e-05,2]
[418917276,1774542638994,-500.0,9.086e-05,2]
[418917277,1774542639003,-68377.964377,9.09e-05,2]
[418917278,1774542639015,-31542.74436907,9.09e-05,2]
[418917300,1774542643917,-56215.70281955,8.99e-05,2]
[418917319,1774542646645,-1082.59443861,8.99e-05,2]
[418917320,1774542646657,-8014.1674737,8.99e-05,2]
[418917321,1774542646961,-2195.93524215,8.99e-05,2]
[418917392,1774543835494,-464.8927436,8.6e-05,2]
[418917393,1774543835508,-961.5530741,8.6e-05,2]
[418917394,1774543835529,-1073.5541823,8.6e-05,2]
[418917395,1774543835550,-25.18218848,8.6e-05,2]
[418917396,1774543835569,-1064.26734787,8.6e-05,2]
[418917397,1774543835590,-541.0,8.6e-05,2]
[418917398,1774543835608,-156.56486043,8.626e-05,7]
[418917399,1774543835621,-194.559,8.712e-05,2]
[418917400,1774543835638,-500.0,8.773e-05,2]
[418917401,1774543835657,-300.0,8.788e-05,2]
[418917402,1774543835676,-300.0,8.788e-05,2]
[418917403,1774543835691,-300.0,8.788e-05,2]
[418917404,1774543835707,-2.10242899,8.789e-05,2]
[418917481,1774543838904,-497.89757101,8.789e-05,2]
[418917482,1774543838918,-500.0,8.789e-05,2]
[418917483,1774543838927,-367.44678654,8.789e-05,2]
[418917484,1774543838936,-500.0,8.789e-05,2]
[418917485,1774543838946,-500.0,8.789e-05,2]
[418917486,1774543838955,-500.0,8.789e-05,2]
[418917487,1774543838964,-500.0,8.789e-05,2]
[418917488,1774543838973,-550.0,8.789e-05,2]
[418917489,1774543838982,-250.0,8.789e-05,2]
[418917490,1774543838991,-500.0,8.789e-05,2]
[418917491,1774543839000,-311.79010109,8.789e-05,2]
[418917492,1774543839010,-9062.13996049,8.79e-05,2]
[418917493,1774543839021,-6150.69366847,8.79e-05,2]
[418917559,1774543841692,-1246.70976955,8.79e-05,2]
[418917561,1774543841704,-1119.34001489,8.79e-05,2]
[418917794,1774543844046,-3759.52690935,8.79e-05,2]
[418917797,1774543844058,-2943.40244164,8.79e-05,2]
[418918088,1774543847065,-19365.54945973,8.79e-05,2]
[418918094,1774543847113,-14970.90944582,8.79e-05,2]
[418918681,1774544177282,1812.2,7.65e-05,120]
[418918695,1774544541941,-321.85023826,8.311e-05,2]
[418918696,1774544541970,-194.559284,8.418e-05,2]
[418918697,1774544541996,-504.72606906,8.573e-05,2]
[418918698,1774544542024,-500.0,8.573e-05,2]
[418918699,1774544542051,-500.0,8.573e-05,2]
[418918700,1774544542079,-457.72881736,8.589e-05,2]
[418918706,1774544600736,-300.0,8.399e-05,2]
[418918707,1774544600765,-536.46939857,8.4e-05,2]
[418918708,1774544600818,-584.06329336,8.4e-05,2]
[418918709,1774544654235,-107.8588516,8.4e-05,2]
[418918710,1774544654260,-620.75169537,8.4e-05,2]
[418918740,1774545031759,-7870.03371056,7e-05,2]
[418918741,1774545031769,-368.9009458,7e-05,2]
[418918742,1774545031813,-4543.55715804,7e-05,2]
[418918743,1774545031824,-2755.41732963,7e-05,2]
[418918744,1774545031834,-519.0,7e-05,2]
[418918745,1774545031843,-300.0,7.139e-05,2]
[418918746,1774545031852,-300.0,7.139e-05,2]
[418918747,1774545031861,-300.0,7.139e-05,2]
[418918748,1774545031870,-300.0,7.139e-05,2]
[418918749,1774545031879,-300.0,7.139e-05,2]
[418918750,1774545031888,-300.0,7.139e-05,2]
[418918751,1774545031898,-300.0,7.139e-05,2]
[418918752,1774545031907,-300.0,7.139e-05,2]
[418918754,1774545031916,-300.0,7.139e-05,2]
[418918756,1774545031925,-300.0,7.139e-05,2]
[418918758,1774545031934,-300.0,7.139e-05,2]
[418918760,1774545031943,-300.0,7.139e-05,2]
[418918762,1774545031952,-300.0,7.139e-05,2]
[418918764,1774545031962,-300.0,7.139e-05,2]
[418918766,1774545031971,-42.27118264,8.589e-05,2]
[418918768,1774545031980,-177.36833886,8.589e-05,2]
[418918775,1774545031989,-500.0,8.96e-05,2]
[418918778,1774545032053,-500.0,8.96e-05,2]
[418918780,1774545032063,-500.0,8.96e-05,2]
[418918781,1774545032072,-500.0,8.96e-05,2]
[418918782,1774545032081,-500.0,8.96e-05,2]
[418918783,1774545032091,-650.0,8.96e-05,2]
[418918784,1774545032100,-500.0,8.96e-05,2]
[418918785,1774545032109,-35609.2212409,8.961e-05,2]
[418918786,1774545032118,-6900.8180132,8.963e-05,2]
[418918787,1774545032128,-1447.0882644,8.971e-05,2]
[418918788,1774545032138,-534.3532707,8.971e-05,2]
[418918789,1774545032147,-1337.7271725,8.971e-05,2]
[418918790,1774545032156,-500.0,9.033e-05,2]
[418918791,1774545032165,-500.0,9.033e-05,2]
[418918792,1774545032174,-431.2753209,9.033e-05,2]
[418918793,1774545032184,-426.315085,9.036e-05,2]
[418918794,1774545032193,-151.0,9.058e-05,2]
[418918795,1774545032203,-500.0,9.09e-05,2]
[418918796,1774545032212,-151.0,9.09e-05,2]
[418918797,1774545032222,-151.0,9.09e-05,2]
[418918798,1774545032231,-151.0,9.09e-05,2]
[418918799,1774545032241,-151.0,9.09e-05,2]
[418918800,1774545032250,-151.0,9.09e-05,2]
[418918801,1774545032259,-151.0,9.09e-05,2]
[418918802,1774545032269,-151.0,9.09e-05,2]
[418918803,1774545032278,-537.6845,9.103e-05,2]
[418918804,1774545032287,-2150.738,9.103e-05,2]
[418918805,1774545032297,-557.5788265,9.158e-05,2]
[418918806,1774545032307,-1168.74493041,9.173e-05,2]
[418918864,1774545040558,-300.0,7.139e-05,2]
[418918866,1774545040568,-600.0,7.281e-05,2]
[418918868,1774545040577,-720.0,8.009e-05,2]
[418918870,1774545040586,-864.0,8.81e-05,2]
[418918872,1774545040596,-151.0,9.09e-05,2]
[418918874,1774545040605,-151.0,9.09e-05,2]
[418918876,1774545040614,-151.0,9.09e-05,2]
[418918878,1774545040624,-151.0,9.09e-05,2]
[418918880,1774545040633,-151.0,9.09e-05,2]
[418918882,1774545040643,-500.0,9.172e-05,2]
[418918884,1774545040652,-457.21275057,9.172e-05,2]
[418918886,1774545040661,-5228.71158689,9.173e-05,2]
[418918888,1774545040670,-578.20924308,9.213e-05,2]
[418918890,1774545040679,-419.41027237,9.268e-05,2]
[418918892,1774545040688,-156.20769032,9.303e-05,2]
[418918894,1774545040697,-176.6135689,9.303e-05,2]
[418918896,1774545040706,-426.315085,9.417e-05,2]
[418918898,1774545040715,-263.48693015,9.463e-05,2]
[418918900,1774545040724,-70.43287295,9.463e-05,2]
[418918902,1774545040735,-351.48525876,9.463e-05,2]
[418918904,1774545040746,-80.67430373,9.463e-05,2]
[418918906,1774545040756,-500.0,9.463e-05,2]
[418918908,1774545040765,-503.98664643,9.463e-05,2]
[418918910,1774545040774,-500.0,9.463e-05,2]
[418918912,1774545040783,-500.0,9.463e-05,2]
[418918914,1774545040793,-500.0,9.463e-05,2]
[418918916,1774545040802,-500.0,9.463e-05,2]
[418918918,1774545040811,-500.0,9.463e-05,2]
[418918920,1774545040820,-102.35194063,9.475e-05,2]
[418918926,1774545040877,-151.0,9.09e-05,2]
[418918927,1774545040887,-397.64805937,9.475e-05,2]
[418918928,1774545040896,-537.6845,9.475e-05,2]
[418918929,1774545040904,-151.0,9.475e-05,2]
[418918930,1774545040913,-45351.18050045,9.481e-05,2]
[418918931,1774545040924,-1465.00951315,9.481e-05,2]
[418918932,1774545040935,-5199.95634752,9.481e-05,2]
[418918933,1774545040947,-1273.85328422,9.481e-05,2]
[418918934,1774545040958,-1756.27966031,9.481e-05,2]
[418918942,1774545043183,-213.23301371,9.09e-05,2]
[418918943,1774545043192,-1226.31737617,9.481e-05,2]
[418918947,1774545045965,-13324.03364488,9.481e-05,2]
[418918948,1774545046284,-14752.01429835,9.481e-05,2]
[418918949,1774545046293,-654.09207699,9.581e-05,2]
[418918950,1774545046302,-1000.0,9.581e-05,2]
[418918951,1774545046311,-150.24209715,9.651e-05,2]
[418918978,1774546231936,-532.0,7.999e-05,2]
[418918979,1774546231945,-367.46101488,7.999e-05,2]
[418918980,1774546231955,-300.0,9.08e-05,2]
[418918981,1774546231964,-300.0,9.08e-05,2]
[418918982,1774546231974,-300.0,9.08e-05,2]
[418918983,1774546231983,-430.01836848,9.081e-05,2]
[418918984,1774546231998,-471.86135784,9.081e-05,2]
[418919064,1774546241010,-500.0,9.08e-05,2]
[418919066,1774546241019,-170.0489254,9.08e-05,2]
[418919068,1774546241031,-3883.49824252,9.081e-05,2]
[418919070,1774546241042,-190380.10095689,9.081e-05,2]
[418919072,1774546241060,-348.705,9.081e-05,2]
[418919511,1774546246409,-35387.4711631,9.081e-05,2]
[418919512,1774546246465,-30317.5760181,9.081e-05,2]
[418919513,1774546828003,223.48423,2.012e-05,2]
[418919557,1774547433994,-167.9524753,8.191e-05,2]
[418919558,1774547434004,-535.0,8.191e-05,2]
[418919559,1774547434013,-255.317,8.801e-05,2]
[418919560,1774547434022,-185.99988391,8.801e-05,2]
[418919561,1774547434031,-177.94598079,8.807e-05,2]
[418919598,1774547438375,-106.26407521,8.807e-05,2]
[418919600,1774547438385,-300.0,8.862e-05,2]
[418919602,1774547438394,-163.26156831,8.863e-05,2]
[418919604,1774547438403,-500.0,8.863e-05,2]
[418919606,1774547438412,-412.0815217,8.863e-05,2]
[418919608,1774547438424,-87.9184783,8.863e-05,2]
[418919609,1774547438433,-500.0,8.863e-05,2]
[418919616,1774547438491,-501.35660583,8.863e-05,2]
[418919618,1774547438501,-500.0,8.863e-05,2]
[418919619,1774547438510,-500.0,8.863e-05,2]
[418919621,1774547438520,-10680.65463109,8.881e-05,2]
[418919624,1774547438531,-66380.14830875,8.881e-05,2]
[418919714,1774547440897,-20474.39826959,8.881e-05,2]
[418919715,1774547440951,-137710.14971493,8.881e-05,2]
[418919736,1774547446669,-4842.1499999,8.881e-05,2]
[418919737,1774547446680,-9315.38910338,8.881e-05,2]
[418919773,1774548632340,-531.0,7.883e-05,2]
[418919774,1774548632350,-500.0,7.884e-05,2]
[418919775,1774548632360,-500.0,7.884e-05,2]
[418919776,1774548632369,-308.71139699,7.884e-05,2]
[418919777,1774548632392,-191.28860301,7.884e-05,2]
[418919778,1774548632401,-300.0,7.884e-05,2]
[418919779,1774548632410,-563.0,7.884e-05,2]
[418919780,1774548632419,-5124.17725118,7.885e-05,2]
[418919781,1774548632431,-8698.05517652,7.885e-05,2]
[418919782,1774548632440,-300.0,8.042e-05,2]
[418919783,1774548632450,-300.0,8.042e-05,2]
[418919784,1774548632459,-300.0,8.042e-05,2]
[418919785,1774548632467,-300.0,8.042e-05,2]
[418919786,1774548632477,-300.0,8.042e-05,2]
[418919787,1774548632486,-300.0,8.042e-05,2]
[418919788,1774548632495,-300.0,8.042e-05,2]
[418919789,1774548632505,-300.0,8.042e-05,2]
[418919790,1774548632525,-300.0,8.042e-05,2]
[418919791,1774548632541,-300.0,8.042e-05,2]
[418919792,1774548632560,-300.0,8.042e-05,2]
[418919793,1774548632578,-300.0,8.042e-05,2]
[418919794,1774548632597,-300.0,8.042e-05,2]
[418919795,1774548632613,-300.0,8.042e-05,2]
[418919796,1774548632627,-300.0,8.042e-05,2]
[418919797,1774548632648,-500.0,8.05e-05,2]
[418919798,1774548632667,-323.23467317,8.05e-05,2]
[418919799,1774548632687,-160.15727713,8.05e-05,2]
[418919800,1774548632699,-160.14213189,8.05e-05,2]
[418919801,1774548632716,-160.10022051,8.05e-05,2]
[418919802,1774548632731,-158.34228375,8.05e-05,2]
[418919803,1774548632749,-258.41666175,8.05e-05,2]
[418919804,1774548632765,-160.14256311,8.05e-05,2]
[418919805,1774548632778,-260.21820733,8.05e-05,2]
[418919806,1774548632793,-168.92694537,8.05e-05,2]
[418919807,1774548632807,-500.0,8.05e-05,2]
[418919808,1774548632822,-600.0,8.202e-05,2]
[418919809,1774548632836,-500.0,8.543e-05,2]
[418919810,1774548632850,-500.0,8.543e-05,2]
[418919811,1774548632865,-300.0958976,8.561e-05,2]
[418919812,1774548632882,-3109.48003944,8.561e-05,2]
[418919813,1774548632911,-2711.43230879,8.561e-05,2]
[418919814,1774548632928,-7703.11114865,8.561e-05,2]
[418919861,1774548638623,-500.0,8.56e-05,2]
[418919864,1774548638633,-408.9677042,8.56e-05,2]
[418919866,1774548638642,-91.0322958,8.56e-05,2]
[418919868,1774548638654,-408.9677042,8.56e-05,2]
[418919870,1774548638663,-563.37606158,8.56e-05,2]
[418919872,1774548638671,-1627840.71970975,8.561e-05,2]
[418919874,1774548638683,-58335.16089577,8.561e-05,2]
[418919876,1774548638691,-224211.32459508,8.561e-05,2]
[418919878,1774548638701,-1000.0,8.598e-05,2]
[418919880,1774548638710,-502.00626801,8.598e-05,2]
[418919882,1774548638718,-500.0,8.598e-05,2]
[418919884,1774548638728,-500.0,8.663e-05,2]
[418919886,1774548638737,-500.0,8.663e-05,2]
[418919888,1774548638746,-158.14035629,8.663e-05,2]
[418919890,1774548638755,-219.75431482,8.663e-05,2]
[418919892,1774548638764,-552.36324954,8.663e-05,2]
[418919894,1774548638773,-501.57891444,8.663e-05,2]
[418919896,1774548638782,-158.34106453,8.663e-05,2]
[418919897,1774548638791,-500.0,8.663e-05,2]
[418919899,1774548638800,-500.0,8.663e-05,2]
[418919901,1774548638810,-500.18906294,8.663e-05,2]
[418919903,1774548638819,-500.0,8.663e-05,2]
[418919905,1774548638828,-500.0,8.663e-05,2]
[418919907,1774548638837,-500.0,8.663e-05,2]
[418919909,1774548638846,-500.0,8.663e-05,2]
[418919911,1774548638855,-500.0,8.663e-05,2]
[418919913,1774548638864,-156.56879348,8.663e-05,2]
[418919915,1774548638873,-500.0,8.663e-05,2]
[418919917,1774548638882,-500.0,8.663e-05,2]
[418919919,1774548638892,-500.0,8.663e-05,2]
[418919921,1774548638902,-535.85267128,8.663e-05,2]
[418919923,1774548638911,-500.35878526,8.663e-05,2]
[418919925,1774548638920,-500.0,8.663e-05,2]
[418919927,1774548638929,-151.871,8.678e-05,2]
[418919929,1774548638939,-185.843,8.678e-05,2]
[418919931,1774548638947,-151.0,8.681e-05,2]
[418919933,1774548638956,-150.3319654,8.7e-05,2]
[418919936,1774548638966,-150.88223725,8.7e-05,2]
[418919937,1774548638975,-500.0,8.763e-05,2]
[418919939,1774548638984,-500.0,8.763e-05,2]
[418919941,1774548638993,-500.0,8.763e-05,2]
[418919943,1774548639002,-500.0,8.763e-05,2]
[418919945,1774548639012,-250.0,8.8e-05,2]
[418919947,1774548639022,-250.0,8.8e-05,2]
[418919949,1774548639030,-250.0,8.8e-05,2]
[418919951,1774548639039,-250.0,8.8e-05,2]
[418919953,1774548639048,-250.0,8.8e-05,2]
[418919955,1774548639057,-250.0,8.8e-05,2]
[418919957,1774548639066,-250.0,8.8e-05,2]
[418919959,1774548639075,-250.0,8.8e-05,2]
[418919961,1774548639084,-243.0,8.8e-05,2]
[418919963,1774548639094,-500.0,8.872e-05,2]
[418919965,1774548639103,-151.0,8.881e-05,2]
[418919967,1774548639112,-1202.07836164,8.9e-05,2]
[418919969,1774548639121,-561.75462157,8.9e-05,2]
[418919970,1774548639130,-1336.02614575,8.9e-05,2]
[418919972,1774548639139,-1388.1121096,8.9e-05,2]
[418919974,1774548639148,-720.0,9.022e-05,2]
[418919977,1774548639162,-16263.7865023,9.052e-05,2]
[418919979,1774548639171,-537.6845,9.08e-05,2]
[418919981,1774548639180,-537.6845,9.08e-05,2]
[418919983,1774548639189,-218.2588191,9.08e-05,2]
[418920024,1774548641320,-8.40260785,9.08e-05,2]
[418920025,1774548641331,-2150.738,9.08e-05,2]
[418920026,1774548641340,-1000.35287432,9.091e-05,2]
[418920027,1774548641350,-1000.0,9.091e-05,2]
[418920028,1774548641359,-557.5788265,9.135e-05,2]
[418920029,1774548641369,-1500.0,9.146e-05,2]
[418920030,1774548641378,-500.0,9.146e-05,2]
[418920031,1774548641388,-130.82769133,9.178e-05,2]
[418920032,1774548641399,-153.38236467,9.178e-05,2]
[418920033,1774548641409,-151.0,9.182e-05,2]
[418920034,1774548641418,-578.20924308,9.19e-05,2]
[418920035,1774548641427,-718.7302933,9.211e-05,2]
[418920036,1774548641437,-1001.79085466,9.211e-05,2]
[418920037,1774548641447,-500.0,9.211e-05,2]
[418920038,1774548641456,-502.27483397,9.211e-05,2]
[418920039,1774548641465,-382.28562964,9.211e-05,2]
[418920040,1774548641475,-1000.0,9.211e-05,2]
[418920041,1774548641484,-500.68922034,9.211e-05,2]
[418920042,1774548641494,-623.88245714,9.211e-05,2]
[418920043,1774548641503,-1000.0,9.211e-05,2]
[418920044,1774548641515,-1001.20303353,9.211e-05,2]
[418920045,1774548641524,-116.55206967,9.211e-05,2]
[418920047,1774548641536,-883.44793033,9.211e-05,2]
[418920049,1774548641546,-167.829604,9.211e-05,2]
[418920050,1774548641556,-599.60298507,9.245e-05,2]
[418920051,1774548641567,-4560.11948057,9.281e-05,2]
[418920084,1774548643813,-439.88051943,9.281e-05,2]
[418920085,1774548643823,-621.78829552,9.3e-05,2]
[418920086,1774548643834,-1003.56410955,9.311e-05,2]
[418920087,1774548643843,-500.0,9.311e-05,2]
[418920088,1774548643853,-1000.0,9.311e-05,2]
[418920089,1774548643862,-644.79446246,9.355e-05,2]
[418920090,1774548643872,-541.10218487,9.41e-05,2]
[418920091,1774548643893,-127.5496727,9.41e-05,2]
[418920092,1774548643902,-500.0,9.42e-05,2]